fUST/lending_fUST_20240712
["ID","MTS","AMOUNT","RATE_DAILY","PERIOD"]
[331828921,1720773512493,-500.0,0.00027397,7]
[331828922,1720773512520,-500.0,0.00027397,7]
[331828923,1720773512545,-500.0,0.00027397,7]
[331828924,1720773512571,-500.0,0.00027397,7]
[331828925,1720773512595,-500.0,0.00027397,7]
[331828926,1720773512619,-500.0,0.00027397,7]
[331828927,1720773512643,-500.0,0.00027397,7]
[331828928,1720773512667,-500.0,0.00027397,7]
[331828929,1720773512691,-500.0,0.00027397,7]
[331828930,1720773512715,-506.49131477,0.00027397,7]
[331828931,1720773512739,-500.0,0.00027397,7]
[331828932,1720773512763,-500.0,0.00027397,7]
[331828933,1720773512787,-512.40782196,0.00027397,7]
[331828934,1720773512811,-500.0,0.00027397,7]
[331828935,1720773512836,-500.0,0.00027397,7]
[331828936,1720773512861,-500.0,0.00027397,7]
[331828937,1720773512887,-500.0,0.00027397,7]
[331828938,1720773512912,-500.0,0.00027397,7]
[331828939,1720773512936,-500.0,0.00027397,7]
[331828940,1720773512960,-715.59148,0.00027397,7]
[331828941,1720773512988,-715.59148,0.00027397,7]
[331828942,1720773513013,-500.0,0.00027397,7]
[331828943,1720773513039,-715.59148,0.00027397,7]
[331828944,1720773513062,-505.24166512,0.00027397,7]
[331828945,1720773513087,-715.59148,0.00027397,7]
[331828946,1720773513111,-500.0,0.00027397,7]
[331828947,1720773513200,-506.93620969,0.00027397,7]
[331828948,1720773513225,-715.59148,0.00027397,7]
[331828949,1720773513250,-500.0,0.00027397,7]
[331828950,1720773513275,-715.59148,0.00027397,7]
[331828951,1720773513300,-715.59148,0.00027397,7]
[331828952,1720773513324,-715.591475,0.00027397,7]
[331828953,1720773513349,-500.0,0.00027397,7]
[331828954,1720773513376,-505.75677149,0.00027397,7]
[331828955,1720773513406,-500.0,0.00027397,7]
[331828956,1720773513431,-500.0,0.00027397,7]
[331828957,1720773513460,-500.0,0.00027397,7]
[331828958,1720773513485,-500.0,0.00027397,7]
[331828959,1720773513511,-500.0,0.00027397,7]
[331828960,1720773513538,-510.05704388,0.00027397,7]
[331828961,1720773513562,-510.45947162,0.00027397,7]
[331828962,1720773513588,-500.0,0.00027397,7]
[331828963,1720773513619,-500.0,0.00027397,7]
[331828964,1720773513668,-513.71472132,0.00027397,7]
[331828965,1720773513721,-500.0,0.00027397,7]
[331828966,1720773513772,-500.0,0.00027397,7]
[331828967,1720773513824,-505.04975622,0.00027397,7]
[331828968,1720773513868,-500.0,0.00027397,7]
[331828969,1720773513915,-500.0,0.00027397,7]
[331828970,1720773513957,-500.0,0.00027397,7]
[331828971,1720773514003,-500.0,0.00027397,7]
[331828972,1720773514046,-500.0,0.00027397,7]
[331828973,1720773514093,-500.0,0.00027397,7]
[331828974,1720773514137,-507.77999255,0.00027397,7]
[331828975,1720773514181,-506.93007403,0.00027397,7]
[331828976,1720773514226,-500.0,0.00027397,7]
[331828977,1720773514268,-638.05591686,0.00027397,7]
[331828978,1720773514312,-504.99629049,0.00027397,7]
[331828979,1720773514355,-548.68250917,0.00027397,7]
[331828980,1720773514495,-1070.834917,0.00027397,7]
[331828981,1720773514522,-500.0,0.00027397,7]
[331828982,1720773514549,-500.0,0.00027397,7]
[331828983,1720773514574,-1070.834917,0.00027397,7]
[331828984,1720773514598,-1070.834917,0.00027397,7]
[331828985,1720773514623,-1070.834917,0.00027397,7]
[331828986,1720773514649,-500.0,0.00027397,7]
[331828987,1720773514679,-500.0,0.00027397,7]
[331828988,1720773514705,-500.0,0.00027397,7]
[331828989,1720773514730,-500.0,0.00027397,7]
[331828990,1720773514754,-500.0,0.00027397,7]
[331828991,1720773514778,-500.0,0.00027397,7]
[331828992,1720773514802,-233.79532473,0.00027397,7]
[331828993,1720773514826,-1070.834917,0.00027397,7]
[331828994,1720773514851,-1070.834917,0.00027397,7]
[331828995,1720773514875,-500.0,0.00027397,7]
[331828996,1720773514899,-1070.834917,0.00027397,7]
[331828997,1720773514924,-500.0,0.00027397,7]
[331828998,1720773514950,-610.95735159,0.00027397,7]
[331828999,1720773514976,-1070.83491066,0.00027397,7]
[331829000,1720773515000,-500.0,0.00027397,7]
[331829001,1720773515027,-504.79565684,0.00027397,7]
[331829002,1720773515051,-504.00617289,0.00027397,7]
[331829003,1720773515077,-500.0,0.00027397,7]
[331829004,1720773515103,-500.0,0.00027397,7]
[331829005,1720773515127,-500.0,0.00027397,7]
[331829006,1720773515151,-500.0,0.00027397,7]
[331829007,1720773515174,-500.0,0.00027397,7]
[331829008,1720773515198,-500.0,0.00027397,7]
[331829009,1720773515223,-579.19,0.00027397,7]
[331829010,1720773515247,-515.1395967,0.00027397,7]
[331829011,1720773515272,-500.0,0.00027397,7]
[331829012,1720773515296,-512.68302201,0.00027397,7]
[331829013,1720773515322,-500.0,0.00027397,7]
[331829014,1720773515345,-508.71061849,0.00027397,7]
[331829015,1720773515371,-500.0,0.00027397,7]
[331829016,1720773515395,-500.0,0.00027397,7]
[331829017,1720773515420,-509.09776079,0.00027397,7]
[331829018,1720773515447,-500.0,0.00027397,7]
[331829019,1720773515472,-500.0,0.00027397,7]
[331829020,1720773515497,-500.0,0.00027397,7]
[331829021,1720773515524,-500.0,0.00027397,7]
[331829022,1720773515550,-500.0,0.00027397,7]
[331829023,1720773515638,-522.71,0.00027397,7]
[331829024,1720773515665,-500.0,0.00027397,7]
[331829025,1720773515689,-500.0,0.00027397,7]
[331829026,1720773515715,-500.0,0.00027397,7]
[331829027,1720773515739,-500.0,0.00027397,7]
[331829028,1720773515764,-500.0,0.00027397,7]
[331829029,1720773515789,-500.0,0.00027397,7]
[331829030,1720773515814,-500.0,0.00027397,7]
[331829031,1720773515839,-500.0,0.00027397,7]
[331829032,1720773515864,-500.0,0.00027397,7]
[331829033,1720773515888,-502.11799966,0.00027397,7]
[331829034,1720773515914,-500.0,0.00027397,7]
[331829035,1720773515940,-500.0,0.00027397,7]
[331829036,1720773515964,-500.0,0.00027397,7]
[331829037,1720773515988,-500.0,0.00027397,7]
[331829038,1720773516013,-500.0,0.00027397,7]
[331829039,1720773516037,-500.0,0.00027397,7]
[331829040,1720773516063,-500.0,0.00027397,7]
[331829041,1720773516089,-500.0,0.00027397,7]
[331829042,1720773516113,-500.0,0.00027397,7]
[331829043,1720773516138,-500.0,0.00027397,7]
[331829044,1720773516162,-500.0,0.00027397,7]
[331829045,1720773516187,-500.0,0.00027397,7]
[331829046,1720773516212,-500.0,0.00027397,7]
[331829047,1720773516237,-500.0,0.00027397,7]
[331829048,1720773516264,-500.0,0.00027397,7]
[331829049,1720773516289,-500.0,0.00027397,7]
[331829050,1720773516314,-368.2008881,0.00027397,7]
[331829051,1720773516338,-500.0,0.00027397,7]
[331829052,1720773516362,-500.0,0.00027397,7]
[331829053,1720773516386,-511.08278291,0.00027397,7]
[331829054,1720773516411,-500.0,0.00027397,7]
[331829055,1720773516439,-500.0,0.00027397,7]
[331829056,1720773516463,-500.0,0.00027397,7]
[331829057,1720773516488,-500.0,0.00027397,7]
[331829058,1720773516516,-503.98738229,0.00027397,7]
[331829059,1720773516541,-511.52551444,0.00027397,7]
[331829060,1720773516569,-500.0,0.00027397,7]
[331829061,1720773516594,-500.0,0.00027397,7]
[331829062,1720773516619,-500.0,0.00027397,7]
[331829063,1720773516644,-500.0,0.00027397,7]
[331829064,1720773516734,-510.31467365,0.00027397,7]
[331829065,1720773516766,-500.0,0.00027397,7]
[331829066,1720773516791,-500.0,0.00027397,7]
[331829067,1720773516817,-513.97970456,0.00027397,7]
[331829068,1720773516842,-500.0,0.00027397,7]
[331829069,1720773516867,-500.0,0.00027397,7]
[331829070,1720773516894,-500.0,0.00027397,7]
[331829071,1720773516920,-500.0,0.00027397,7]
[331829072,1720773516946,-500.0,0.00027397,7]
[331829073,1720773516973,-500.0,0.00027397,7]
[331829074,1720773517000,-500.0,0.00027397,7]
[331829075,1720773517026,-629.61,0.00027397,7]
[331829076,1720773517052,-500.0,0.00027397,7]
[331829077,1720773517079,-500.0,0.00027397,7]
[331829078,1720773517104,-4920.39,0.00027397,7]
[331829079,1720773517128,-516.56777677,0.00027397,7]
[331829080,1720773517153,-524.39624439,0.00027397,7]
[331829081,1720773517179,-500.0,0.00027397,7]
[331829082,1720773517205,-500.0,0.00027397,7]
[331829083,1720773517231,-500.0,0.00027397,7]
[331829084,1720773517262,-500.0,0.00027397,7]
[331829085,1720773517289,-500.0,0.00027397,7]
[331829086,1720773517314,-500.0,0.00027397,7]
[331829087,1720773517339,-500.0,0.00027397,7]
[331829088,1720773517365,-500.0,0.00027397,7]
[331829089,1720773517390,-500.0,0.00027397,7]
[331829090,1720773517417,-500.0,0.00027397,7]
[331829091,1720773517445,-545.99964965,0.00027397,7]
[331829092,1720773517470,-500.0,0.00027397,7]
[331829093,1720773517500,-500.0,0.00027397,7]
[331829094,1720773517526,-200.0,0.00027397,7]
[331829095,1720773517551,-500.0,0.00027397,7]
[331829096,1720773517577,-500.0,0.00027397,7]
[331829097,1720773517602,-500.0,0.00027397,7]
[331829098,1720773517627,-500.0,0.00027397,7]
[331829099,1720773517652,-507.87182556,0.00027397,7]
[331829100,1720773517676,-500.0,0.00027397,7]
[331829101,1720773517701,-500.0,0.00027397,7]
[331829102,1720773517726,-500.0,0.00027397,7]
[331829103,1720773517754,-500.0,0.00027397,7]
[331829104,1720773517778,-1500.0,0.00027397,7]
[331829105,1720773517865,-500.0,0.00027397,7]
[331829106,1720773517890,-651.965813,0.00027397,7]
[331829107,1720773517914,-500.0,0.00027397,7]
[331829108,1720773517939,-651.965813,0.00027397,7]
[331829109,1720773517964,-500.0,0.00027397,7]
[331829110,1720773517988,-651.965813,0.00027397,7]
[331829111,1720773518014,-500.0,0.00027397,7]
[331829112,1720773518037,-500.0,0.00027397,7]
[331829113,1720773518062,-500.0,0.00027397,7]
[331829114,1720773518087,-836.42,0.00027397,7]
[331829115,1720773518111,-517.21290926,0.00027397,7]
[331829116,1720773518135,-553.91524443,0.00027397,7]
[331829117,1720773518159,-500.0,0.00027397,7]
[331829118,1720773518184,-651.965813,0.00027397,7]
[331829119,1720773518208,-500.0,0.00027397,7]
[331829120,1720773518235,-651.965813,0.00027397,7]
[331829121,1720773518261,-651.965804,0.00027397,7]
[331829122,1720773518286,-500.0,0.00027397,7]
[331829123,1720773518310,-500.0,0.00027397,7]
[331829124,1720773518335,-500.0,0.00027397,7]
[331829125,1720773518361,-554.98157626,0.00027397,7]
[331829126,1720773518385,-500.0,0.00027397,7]
[331829127,1720773518410,-500.0,0.00027397,7]
[331829128,1720773518433,-500.0,0.00027397,7]
[331829129,1720773518463,-513.85396874,0.00027397,7]
[331829130,1720773518489,-500.0,0.00027397,7]
[331829131,1720773518518,-500.0,0.00027397,7]
[331829132,1720773518544,-500.0,0.00027397,7]
[331829133,1720773518571,-594.28,0.00027397,7]
[331829134,1720773518595,-500.0,0.00027397,7]
[331829135,1720773518621,-541.12,0.00027397,7]
[331829136,1720773518646,-500.0,0.00027397,7]
[331829137,1720773518671,-500.0,0.00027397,7]
[331829138,1720773518696,-797.2,0.00027397,7]
[331829139,1720773518720,-500.0,0.00027397,7]
[331829140,1720773518746,-500.0,0.00027397,7]
[331829141,1720773518771,-514.1559808,0.00027397,7]
[331829142,1720773518797,-510.4837269,0.00027397,7]
[331829143,1720773518821,-502.77039481,0.00027397,7]
[331829144,1720773518915,-500.0,0.00027397,7]
[331829145,1720773518941,-500.0,0.00027397,7]
[331829146,1720773518965,-500.0,0.00027397,7]
[331829147,1720773518989,-500.0,0.00027397,7]
[331829148,1720773519015,-500.0,0.00027397,7]
[331829149,1720773519040,-500.0,0.00027397,7]
[331829150,1720773519064,-512.34562752,0.00027397,7]
[331829151,1720773519088,-500.0,0.00027397,7]
[331829152,1720773519113,-500.0,0.00027397,7]
[331829153,1720773519138,-500.0,0.00027397,7]
[331829154,1720773519164,-530.29,0.00027397,7]
[331829155,1720773519188,-542.58,0.00027397,7]
[331829156,1720773519212,-500.0,0.00027397,7]
[331829157,1720773519237,-500.0,0.00027397,7]
[331829158,1720773519262,-500.0,0.00027397,7]
[331829159,1720773519286,-500.0,0.00027397,7]
[331829160,1720773519311,-500.0,0.00027397,7]
[331829161,1720773519336,-500.0,0.00027397,7]
[331829162,1720773519360,-565.223901,0.00027397,7]
[331829163,1720773519385,-565.223892,0.00027397,7]
[331829164,1720773519409,-1271.0,0.00027397,7]
[331829165,1720773519436,-500.0,0.00027397,7]
[331829166,1720773519463,-284.81172757,0.00027397,7]
[331829167,1720773519988,909.32419218,0.00016255,2]
[331829168,1720773520195,208.24444809,0.00016255,2]
[331829169,1720773520595,4701.03547835,0.00016255,2]
[331829170,1720773520796,154.63660398,0.00016255,2]
[331829171,1720773520907,200.76791871,0.00016255,2]
[331829172,1720773521114,950.1531885,0.00016255,2]
[331829173,1720773521322,154.63660398,0.00016255,2]
[331829174,1720773521959,2103.62892291,0.00016255,2]
[331829175,1720773522030,909.32419218,0.00016255,2]
[331829176,1720773522083,4701.03547835,0.00016255,2]
[331829177,1720773523035,413.03103633,0.00016255,2]
[331829178,1720773525469,301.37525549,0.00016255,2]
[331829179,1720773527377,1106.21382768,0.00016255,2]
[331829180,1720773527412,154.63660398,0.00016255,2]
[331829181,1720773527708,187.84280407,0.00016255,2]
[331829182,1720773527738,950.1531885,0.00016255,2]
[331829183,1720773527776,208.24444809,0.00016255,2]
[331829184,1720773529580,195.03736097,0.00016255,2]
[331829185,1720773535595,260.21528731,0.00016255,2]
[331829186,1720773535687,154.69833824,0.00016255,2]
[331829187,1720773536386,2129.18009702,0.00016255,2]
[331829188,1720773540131,518.26359044,0.00016255,2]
[331829189,1720773541461,1494.11687435,0.00016255,2]
[331829190,1720773542906,993.01891561,0.00016255,2]
[331829191,1720773551207,155.19125236,0.00016255,2]
[331829192,1720773565177,777.81408945,0.00016255,2]
[331829193,1720773566360,193.22418056,0.00016255,2]
[331829194,1720773567717,532.59095872,0.00016255,2]
[331829195,1720773571344,886.16851084,0.00016255,2]
[331829196,1720773572411,154.63660398,0.00016255,2]
[331829197,1720773573649,2103.62892291,0.00016255,2]
[331829198,1720773574037,287.51223328,0.00016255,2]
[331829199,1720773574859,-151.0,0.000254,7]
[331829200,1720773575010,-151.0,0.000254,7]
[331829201,1720773575039,-151.0,0.0002549,7]
[331829202,1720773575064,-242.683806,0.0002549,7]
[331829203,1720773575091,-151.0,0.000255,7]
[331829204,1720773575118,-151.0,0.00025501,7]
[331829205,1720773575144,-151.0,0.0002659,7]
[331829206,1720773575171,-500.0,0.00026719,7]
[331829207,1720773575197,-151.0,0.0002674,7]
[331829208,1720773575225,-151.0,0.0002688,7]
[331829209,1720773575251,-151.0,0.0002689,7]
[331829210,1720773575283,-215.18827243,0.00027397,7]
[331829211,1720773575312,-500.0,0.00027397,7]
[331829212,1720773575336,-500.0,0.00027397,7]
[331829213,1720773575370,-500.0,0.00027397,7]
[331829214,1720773575394,-500.0,0.00027397,7]
[331829215,1720773575418,-508.78058335,0.00027397,7]
[331829216,1720773575442,-500.0,0.00027397,7]
[331829217,1720773575471,-500.0,0.00027397,7]
[331829218,1720773575497,-500.0,0.00027397,7]
[331829219,1720773575522,-500.0,0.00027397,7]
[331829220,1720773575552,-500.0,0.00027397,7]
[331829221,1720773575580,-500.0,0.00027397,7]
[331829222,1720773575606,-502.96918141,0.00027397,7]
[331829223,1720773575637,-2095.77,0.00027397,7]
[331829224,1720773575665,-500.0,0.00027397,7]
[331829225,1720773575691,-500.0,0.00027397,7]
[331829226,1720773575717,-500.0,0.00027397,7]
[331829227,1720773575743,-500.0,0.00027397,7]
[331829228,1720773575770,-500.0,0.00027397,7]
[331829229,1720773575794,-500.0,0.00027397,7]
[331829230,1720773575823,-500.0,0.00027397,7]
[331829231,1720773575849,-500.0,0.00027397,7]
[331829232,1720773575874,-503.28123019,0.00027397,7]
[331829233,1720773575897,-500.0,0.00027397,7]
[331829234,1720773575922,-500.0,0.00027397,7]
[331829235,1720773575947,-500.0,0.00027397,7]
[331829236,1720773575975,-500.0,0.00027397,7]
[331829237,1720773576001,-500.0,0.00027397,7]
[331829238,1720773576029,-500.0,0.00027397,7]
[331829239,1720773576054,-1020.62,0.00027397,7]
[331829240,1720773576078,-500.0,0.00027397,7]
[331829241,1720773576105,-508.91320766,0.00027397,7]
[331829242,1720773576131,-500.0,0.00027397,7]
[331829243,1720773576160,-500.0,0.00027397,7]
[331829244,1720773576186,-500.0,0.00027397,7]
[331829245,1720773576211,-500.0,0.00027397,7]
[331829246,1720773576235,-500.0,0.00027397,7]
[331829247,1720773576262,-500.0,0.00027397,7]
[331829248,1720773576290,-535.2976363,0.00027397,7]
[331829249,1720773576316,-500.0,0.00027397,7]
[331829250,1720773576340,-500.0,0.00027397,7]
[331829251,1720773576366,-616.4147694,0.00027397,7]
[331829252,1720773576390,-500.0,0.00027397,7]
[331829253,1720773576415,-511.10674974,0.00027397,7]
[331829254,1720773576440,-509.70399191,0.00027397,7]
[331829255,1720773576470,-502.03809599,0.00027397,7]
[331829256,1720773576496,-500.0,0.00027397,7]
[331829257,1720773576523,-500.0,0.00027397,7]
[331829258,1720773576550,-500.0,0.00027397,7]
[331829259,1720773576575,-500.0,0.00027397,7]
[331829260,1720773576599,-500.0,0.00027397,7]
[331829261,1720773576624,-536.28244532,0.00027397,7]
[331829262,1720773576650,-632.37204118,0.00027397,7]
[331829263,1720773576769,-508.57455824,0.00027397,7]
[331829264,1720773576798,-500.0,0.00027397,7]
[331829265,1720773576824,-533.80093742,0.00027397,7]
[331829266,1720773576856,-500.0,0.00027397,7]
[331829267,1720773576891,-510.74594422,0.00027397,7]
[331829268,1720773576919,-641.21874368,0.00027397,7]
[331829269,1720773576946,-500.0,0.00027397,7]
[331829270,1720773576974,-500.0,0.00027397,7]
[331829271,1720773577002,-500.0,0.00027397,7]
[331829272,1720773577030,-500.0,0.00027397,7]
[331829273,1720773577059,-498.07552578,0.00027397,7]
[331829274,1720773577089,-500.0,0.00027397,7]
[331829275,1720773577117,-500.0,0.00027397,7]
[331829276,1720773577144,-1160.94495,0.00027397,7]
[331829277,1720773577169,-500.0,0.00027397,7]
[331829278,1720773577195,-500.0,0.00027397,7]
[331829279,1720773577223,-1160.94495,0.00027397,7]
[331829280,1720773577249,-1160.94495,0.00027397,7]
[331829281,1720773577275,-500.0,0.00027397,7]
[331829282,1720773577304,-500.0,0.00027397,7]
[331829283,1720773577330,-151.0,0.00027397,7]
[331829284,1720773577355,-151.0,0.00027397,7]
[331829285,1720773577380,-500.0,0.00027397,7]
[331829286,1720773577405,-500.0,0.00027397,7]
[331829287,1720773577430,-1160.94495,0.00027397,7]
[331829288,1720773577458,-1160.94495,0.00027397,7]
[331829289,1720773577484,-500.0,0.00027397,7]
[331829290,1720773577511,-1160.94494026,0.00027397,7]
[331829291,1720773577540,-511.29124556,0.00027397,7]
[331829292,1720773577566,-500.0,0.00027397,7]
[331829293,1720773577593,-500.0,0.00027397,7]
[331829294,1720773577634,-500.0,0.00027397,7]
[331829295,1720773577672,-500.0,0.00027397,7]
[331829296,1720773577708,-515.82016961,0.00027397,7]
[331829297,1720773577744,-500.0,0.00027397,7]
[331829298,1720773577782,-500.0,0.00027397,7]
[331829299,1720773577817,-500.0,0.00027397,7]
[331829300,1720773577853,-500.0,0.00027397,7]
[331829301,1720773577883,-500.0,0.00027397,7]
[331829302,1720773577916,-500.0,0.00027397,7]
[331829303,1720773577953,-500.0,0.00027397,7]
[331829304,1720773577989,-500.0,0.00027397,7]
[331829305,1720773578017,-500.0,0.00027397,7]
[331829306,1720773578053,-500.0,0.00027397,7]
[331829307,1720773578085,-509.36135245,0.00027397,7]
[331829308,1720773578120,-500.0,0.00027397,7]
[331829309,1720773578149,-500.0,0.00027397,7]
[331829310,1720773578183,-500.0,0.00027397,7]
[331829311,1720773578216,-500.0,0.00027397,7]
[331829312,1720773578247,-500.0,0.00027397,7]
[331829313,1720773578283,-500.0,0.00027397,7]
[331829314,1720773578316,-500.0,0.00027397,7]
[331829315,1720773578348,-500.0,0.00027397,7]
[331829316,1720773578380,-500.0,0.00027397,7]
[331829317,1720773578411,-500.0,0.00027397,7]
[331829318,1720773578443,-500.0,0.00027397,7]
[331829319,1720773578476,-500.0,0.00027397,7]
[331829320,1720773578509,-507.43775122,0.00027397,7]
[331829321,1720773578539,-500.0,0.00027397,7]
[331829322,1720773578570,-500.0,0.00027397,7]
[331829323,1720773578602,-500.0,0.00027397,7]
[331829324,1720773578634,-500.0,0.00027397,7]
[331829325,1720773578786,-1190.515965,0.00027397,7]
[331829326,1720773578811,-1190.515965,0.00027397,7]
[331829327,1720773578835,-1190.515965,0.00027397,7]
[331829328,1720773578860,-500.0,0.00027397,7]
[331829329,1720773578884,-505.64017989,0.00027397,7]
[331829330,1720773578909,-512.04936283,0.00027397,7]
[331829331,1720773578935,-510.74423393,0.00027397,7]
[331829332,1720773578960,-1190.515965,0.00027397,7]
[331829333,1720773578985,-1190.515965,0.00027397,7]
[331829334,1720773579010,-510.67276414,0.00027397,7]
[331829335,1720773579037,-1190.515957,0.00027397,7]
[331829336,1720773579062,-500.0,0.00027397,7]
[331829337,1720773579087,-500.0,0.00027397,7]
[331829338,1720773579113,-500.0,0.00027397,7]
[331829339,1720773579137,-500.0,0.00027397,7]
[331829340,1720773579161,-500.0,0.00027397,7]
[331829341,1720773579185,-500.0,0.00027397,7]
[331829342,1720773579209,-500.0,0.00027397,7]
[331829343,1720773579233,-500.0,0.00027397,7]
[331829344,1720773579258,-752.18904,0.00027397,7]
[331829345,1720773579283,-752.18904,0.00027397,7]
[331829346,1720773579308,-752.18904,0.00027397,7]
[331829347,1720773579335,-500.0,0.00027397,7]
[331829348,1720773579361,-752.18904,0.00027397,7]
[331829349,1720773579387,-752.18904,0.00027397,7]
[331829350,1720773579413,-752.18903,0.00027397,7]
[331829351,1720773579438,-524.5701232,0.00027397,7]
[331829352,1720773579467,-500.0,0.00027397,7]
[331829353,1720773579492,-500.0,0.00027397,7]
[331829354,1720773579519,-565.98599694,0.00027397,7]
[331829355,1720773579549,-515.45931349,0.00027397,7]
[331829356,1720773579574,-1126.09,0.00027397,7]
[331829357,1720773579599,-516.61645253,0.00027397,7]
[331829358,1720773579625,-500.0,0.00027397,7]
[331829359,1720773579649,-500.0,0.00027397,7]
[331829360,1720773579676,-574.19,0.00027397,7]
[331829361,1720773579700,-513.26680052,0.00027397,7]
[331829362,1720773579724,-514.07015745,0.00027397,7]
[331829363,1720773579750,-502.7372354,0.00027397,7]
[331829364,1720773579774,-500.0,0.00027397,7]
[331829365,1720773579800,-500.0,0.00027397,7]
[331829366,1720773579827,-530.61996948,0.00027397,7]
[331829367,1720773579852,-500.0,0.00027397,7]
[331829368,1720773579878,-296.36779955,0.00027397,7]
[331829369,1720773579904,-500.0,0.00027397,7]
[331829370,1720773579928,-509.56210912,0.00027397,7]
[331829371,1720773579954,-500.0,0.00027397,7]
[331829372,1720773579980,-500.0,0.00027397,7]
[331829373,1720773580005,-500.0,0.00027397,7]
[331829374,1720773580033,-500.0,0.00027397,7]
[331829375,1720773580058,-500.0,0.00027397,7]
[331829376,1720773580082,-549.19931981,0.00027397,7]
[331829377,1720773580109,-500.0,0.00027397,7]
[331829378,1720773580134,-500.0,0.00027397,7]
[331829379,1720773580158,-500.0,0.00027397,7]
[331829380,1720773580183,-500.0,0.00027397,7]
[331829381,1720773580208,-500.0,0.00027397,7]
[331829382,1720773580234,-500.0,0.00027397,7]
[331829383,1720773580259,-500.0,0.00027397,7]
[331829384,1720773580285,-546.27538458,0.00027397,7]
[331829385,1720773580317,-1538.150647,0.00027397,7]
[331829386,1720773580346,-500.0,0.00027397,7]
[331829387,1720773580371,-1538.150647,0.00027397,7]
[331829388,1720773580397,-509.55695519,0.00027397,7]
[331829389,1720773580423,-500.0,0.00027397,7]
[331829390,1720773580451,-561.27936199,0.00027397,7]
[331829391,1720773580574,-500.0,0.00027397,7]
[331829392,1720773580600,-1538.150647,0.00027397,7]
[331829393,1720773580625,-500.0,0.00027397,7]
[331829394,1720773580652,-1538.150644,0.00027397,7]
[331829395,1720773580678,-500.0,0.00027397,7]
[331829396,1720773580703,-500.0,0.00027397,7]
[331829397,1720773580728,-533.85551729,0.00027397,7]
[331829398,1720773580754,-500.0,0.00027397,7]
[331829399,1720773580779,-500.0,0.00027397,7]
[331829400,1720773580808,-500.0,0.00027397,7]
[331829401,1720773580833,-521.35532018,0.00027397,7]
[331829402,1720773580860,-500.0,0.00027397,7]
[331829403,1720773580885,-500.0,0.00027397,7]
[331829404,1720773580910,-500.0,0.00027397,7]
[331829405,1720773580936,-500.0,0.00027397,7]
[331829406,1720773580962,-500.0,0.00027397,7]
[331829407,1720773580988,-500.0,0.00027397,7]
[331829408,1720773581015,-500.0,0.00027397,7]
[331829409,1720773581041,-500.0,0.00027397,7]
[331829410,1720773581073,-500.0,0.00027397,7]
[331829411,1720773581101,-500.0,0.00027397,7]
[331829412,1720773581129,-500.0,0.00027397,7]
[331829413,1720773581156,-470.47758701,0.00027397,7]
[331829414,1720773581182,-500.0,0.00027397,7]
[331829415,1720773581207,-500.0,0.00027397,7]
[331829416,1720773581232,-500.0,0.00027397,7]
[331829417,1720773581257,-500.0,0.00027397,7]
[331829418,1720773581283,-500.0,0.00027397,7]
[331829419,1720773581311,-500.0,0.00027397,7]
[331829420,1720773581338,-500.0,0.00027397,7]